[Event "*** Biggest EVER Titled Tuesday"]
[Site "Chess.com"]
[Date "2018.04.17"]
[Round "7"]
[White "sergiochess83"]
[Black "Jospem"]
[Result "1-0"]
[WhiteElo "2794"]
[BlackElo "2695"]
[TimeControl "180+2"]
[EndTime "14:38:32 PDT"]
[Termination "sergiochess83 won by resignation"]

1. e4 {[%clk 0:03:01.9]} 1... c5 {[%clk 0:03:00.9]} 2. Nf3 {[%clk 0:03:02.6]}
2... d6 {[%clk 0:03:02.5]} 3. d4 {[%clk 0:03:01.6]} 3... cxd4 {[%clk 0:03:04.4]}
4. Nxd4 {[%clk 0:03:03.2]} 4... Nf6 {[%clk 0:03:06.1]} 5. Nc3 {[%clk 0:03:04.5]}
5... a6 {[%clk 0:03:07.8]} 6. g3 {[%clk 0:03:05.9]} 6... g6 {[%clk 0:03:06.5]}
7. Bg2 {[%clk 0:03:06.1]} 7... Bg7 {[%clk 0:03:08.4]} 8. O-O {[%clk 0:03:06.2]}
8... O-O {[%clk 0:03:09.9]} 9. Re1 {[%clk 0:02:59.5]} 9... Bg4 {[%clk
0:02:42.8]} 10. Qd3 {[%clk 0:02:48]} 10... Nbd7 {[%clk 0:02:32.5]} 11. h3 {[%clk
0:02:40.4]} 11... Ne5 {[%clk 0:02:32.5]} 12. Qd2 {[%clk 0:02:33.4]} 12... Bd7
{[%clk 0:02:32.6]} 13. b3 {[%clk 0:02:33]} 13... Qc8 {[%clk 0:02:30.1]} 14. Kh2
{[%clk 0:02:29.5]} 14... Nc6 {[%clk 0:02:29.7]} 15. Nce2 {[%clk 0:02:21.3]}
15... b5 {[%clk 0:02:25.3]} 16. Bb2 {[%clk 0:02:21.7]} 16... h5 {[%clk
0:02:10.8]} 17. Rac1 {[%clk 0:02:02.1]} 17... Kh7 {[%clk 0:01:50.6]} 18. c4
{[%clk 0:01:58.2]} 18... Nxd4 {[%clk 0:01:25.6]} 19. Bxd4 {[%clk 0:01:46.1]}
19... Qb8 {[%clk 0:01:23.7]} 20. Qb2 {[%clk 0:01:19.5]} 20... bxc4 {[%clk
0:01:16]} 21. e5 {[%clk 0:01:11.4]} 21... dxe5 {[%clk 0:01:12.7]} 22. Bxe5
{[%clk 0:00:52.8]} 22... Ng4+ {[%clk 0:01:12.9]} 23. hxg4 {[%clk 0:00:53.9]}
23... Bxe5 {[%clk 0:01:14.8]} 24. Qd2 {[%clk 0:00:55.3]} 24... Bxg4 {[%clk
0:01:13.2]} 25. Bxa8 {[%clk 0:00:55.7]} 25... Qxa8 {[%clk 0:01:15.1]} 26. Qe3
{[%clk 0:00:55.1]} 26... Bg7 {[%clk 0:01:03.4]} 27. Rxc4 {[%clk 0:00:54.6]}
27... e5 {[%clk 0:01:04.2]} 28. Nc3 {[%clk 0:00:41.8]} 28... Qd8 {[%clk
0:00:41.8]} 29. Ne4 {[%clk 0:00:37]} 29... Bh6 {[%clk 0:00:42.5]} 30. Qc5 {[%clk
0:00:33.2]} 30... Be6 {[%clk 0:00:27.8]} 31. Ra4 {[%clk 0:00:21.4]} 31... f5
{[%clk 0:00:20.6]} 32. Rxa6 {[%clk 0:00:15.6]} 32... Bg8 {[%clk 0:00:13.6]} 33.
Ra7+ {[%clk 0:00:14.1]} 33... Bg7 {[%clk 0:00:14.3]} 34. Qxe5 {[%clk 0:00:13.8]}
34... Rf7 {[%clk 0:00:13.2]} 35. Rxf7 {[%clk 0:00:13.9]} 35... Bxf7 {[%clk
0:00:15.1]} 36. Qd6 {[%clk 0:00:15]} 36... Qa5 {[%clk 0:00:07.4]} 37. Ng5+
{[%clk 0:00:15.2]} 37... Kg8 {[%clk 0:00:08.9]} 38. Re2 {[%clk 0:00:09.8]} 38...
Bf8 {[%clk 0:00:04.4]} 39. Qd7 {[%clk 0:00:05.8]} 39... Bd5 {[%clk 0:00:04.6]}
40. Re8 {[%clk 0:00:06]} 40... Qe1 {[%clk 0:00:02.5]} 41. Rxe1 {[%clk 0:00:06]}
1-0

[Event "*** Biggest EVER Titled Tuesday"]
[Site "Chess.com"]
[Date "2018.04.17"]
[Round "7"]
[White "Alopekos"]
[Black "Mikhail_Golubev"]
[Result "1-0"]
[WhiteElo "2316"]
[BlackElo "2380"]
[TimeControl "180+2"]
[EndTime "14:38:36 PDT"]
[Termination "Alopekos won by resignation"]

1. e4 {[%clk 0:03:01.9]} 1... c5 {[%clk 0:02:59.7]} 2. Nf3 {[%clk 0:03:02.6]}
2... d6 {[%clk 0:03:00.7]} 3. d4 {[%clk 0:03:03.8]} 3... cxd4 {[%clk 0:03:01.4]}
4. Nxd4 {[%clk 0:03:05.7]} 4... Nf6 {[%clk 0:03:01.9]} 5. Nc3 {[%clk 0:03:06.9]}
5... g6 {[%clk 0:03:02.7]} 6. Bg5 {[%clk 0:03:00.6]} 6... Bg7 {[%clk 0:03:01.7]}
7. Bb5+ {[%clk 0:03:01.6]} 7... Bd7 {[%clk 0:02:58.8]} 8. Qe2 {[%clk 0:03:02.6]}
8... a6 {[%clk 0:02:58.8]} 9. Bxd7+ {[%clk 0:03:02.8]} 9... Nbxd7 {[%clk
0:02:59.4]} 10. O-O-O {[%clk 0:03:04.7]} 10... Rc8 {[%clk 0:02:59.3]} 11. f4
{[%clk 0:03:05.1]} 11... Rxc3 {[%clk 0:02:48.1]} 12. bxc3 {[%clk 0:03:06.2]}
12... Qa5 {[%clk 0:02:48.6]} 13. Qc4 {[%clk 0:02:49.9]} 13... O-O {[%clk
0:02:39.7]} 14. Bxf6 {[%clk 0:02:38.1]} 14... Nxf6 {[%clk 0:02:38.4]} 15. Nb3
{[%clk 0:01:22.2]} 15... Qa3+ {[%clk 0:02:37.2]} 16. Kd2 {[%clk 0:01:13.6]}
16... b5 {[%clk 0:02:36.1]} 17. Qc6 {[%clk 0:01:03.2]} 17... b4 {[%clk
0:02:22.7]} 18. Ke2 {[%clk 0:00:20.8]} 18... bxc3 {[%clk 0:02:13.7]} 19. Kf3
{[%clk 0:00:20.4]} 19... Qxa2 {[%clk 0:02:07.8]} 20. Nd4 {[%clk 0:00:08.3]}
20... Qa5 {[%clk 0:01:48.5]} 21. g4 {[%clk 0:00:04.7]} 21... Nxg4 {[%clk
0:01:13.1]} 22. Kxg4 {[%clk 0:00:05]} 22... Qh5+ {[%clk 0:01:13.3]} 23. Kg3
{[%clk 0:00:06.3]} 23... e5 {[%clk 0:01:14.2]} 24. Nf3 {[%clk 0:00:03.8]} 24...
exf4+ {[%clk 0:01:13.8]} 25. Kf2 {[%clk 0:00:05.1]} 25... f5 {[%clk 0:01:06.8]}
26. Qd5+ {[%clk 0:00:05.8]} 26... Kh8 {[%clk 0:01:07]} 27. Rhe1 {[%clk
0:00:04.2]} 27... g5 {[%clk 0:01:04]} 28. e5 {[%clk 0:00:03.3]} 28... g4 {[%clk
0:01:04.2]} 29. exd6 {[%clk 0:00:03.9]} 29... Bf6 {[%clk 0:00:44.5]} 30. d7
{[%clk 0:00:03.5]} 30... gxf3 {[%clk 0:00:37.2]} 31. Re8 {[%clk 0:00:04.1]}
31... Qxh2+ {[%clk 0:00:27.8]} 32. Kxf3 {[%clk 0:00:05.4]} 32... Qh3+ {[%clk
0:00:19.3]} 33. Ke2 {[%clk 0:00:06]} 33... Qh2+ {[%clk 0:00:14.7]} 34. Kd3
{[%clk 0:00:04.9]} 34... Kg7 {[%clk 0:00:09]} 35. Rxf8 {[%clk 0:00:04.4]} 35...
Kxf8 {[%clk 0:00:09.5]} 36. d8=Q+ {[%clk 0:00:05.6]} 36... Bxd8 {[%clk
0:00:10.5]} 37. Qxd8+ {[%clk 0:00:07]} 37... Kf7 {[%clk 0:00:11.6]} 38. Qd7+
{[%clk 0:00:08.9]} 38... Kf6 {[%clk 0:00:12.7]} 39. Qd6+ {[%clk 0:00:10.5]}
39... Kf7 {[%clk 0:00:13.8]} 40. Qd7+ {[%clk 0:00:11.6]} 40... Kf6 {[%clk
0:00:14.9]} 41. Qd4+ {[%clk 0:00:13.2]} 41... Kf7 {[%clk 0:00:14.8]} 42. Qd5+
{[%clk 0:00:13.4]} 42... Kf6 {[%clk 0:00:15.3]} 43. Qc6+ {[%clk 0:00:14.7]}
43... Kg5 {[%clk 0:00:14.9]} 44. Qxc3 {[%clk 0:00:13.7]} 44... Qg3+ {[%clk
0:00:14.9]} 45. Kc4 {[%clk 0:00:13.8]} 45... f3 {[%clk 0:00:15.9]} 46. Qg7+
{[%clk 0:00:13.6]} 46... Kf4 {[%clk 0:00:14.7]} 47. Rd4+ {[%clk 0:00:14.1]} 1-0

[Event "*** Biggest EVER Titled Tuesday"]
[Site "Chess.com"]
[Date "2018.04.17"]
[Round "7"]
[White "r31415"]
[Black "gmtalentoso"]
[Result "1-0"]
[WhiteElo "2220"]
[BlackElo "2135"]
[TimeControl "180+2"]
[EndTime "14:38:40 PDT"]
[Termination "r31415 won by resignation"]

1. e4 {[%clk 0:03:01]} 1... c5 {[%clk 0:03:00.2]} 2. Nf3 {[%clk 0:03:01.8]} 2...
Nc6 {[%clk 0:03:00.7]} 3. d4 {[%clk 0:03:03.2]} 3... cxd4 {[%clk 0:03:00.7]} 4.
Nxd4 {[%clk 0:03:05.1]} 4... e5 {[%clk 0:02:58.2]} 5. Nb5 {[%clk 0:03:02.8]}
5... d6 {[%clk 0:02:58.8]} 6. c4 {[%clk 0:03:01.5]} 6... Be7 {[%clk 0:02:58.4]}
7. Be2 {[%clk 0:03:01.5]} 7... f5 {[%clk 0:02:55.2]} 8. exf5 {[%clk 0:02:48.8]}
8... Bxf5 {[%clk 0:02:52.3]} 9. Bg5 {[%clk 0:02:45.8]} 9... Nf6 {[%clk
0:02:42.2]} 10. Bxf6 {[%clk 0:02:34.1]} 10... gxf6 {[%clk 0:02:41.8]} 11. Bg4
{[%clk 0:02:35.5]} 11... Bg6 {[%clk 0:02:23.7]} 12. N1c3 {[%clk 0:02:09.9]}
12... a6 {[%clk 0:02:22.9]} 13. Na3 {[%clk 0:02:10.2]} 13... O-O {[%clk
0:02:14.4]} 14. Be6+ {[%clk 0:01:56.7]} 14... Kh8 {[%clk 0:02:12.4]} 15. h4
{[%clk 0:01:29.3]} 15... Nd4 {[%clk 0:02:09.2]} 16. h5 {[%clk 0:01:26.2]} 16...
Bf5 {[%clk 0:01:58.1]} 17. Bxf5 {[%clk 0:01:24.7]} 17... Nxf5 {[%clk 0:01:58.4]}
18. Nc2 {[%clk 0:01:20.4]} 18... Rg8 {[%clk 0:01:56.3]} 19. g4 {[%clk
0:01:15.7]} 19... Nh6 {[%clk 0:01:54.4]} 20. Ne3 {[%clk 0:01:15.7]} 20... Qc8
{[%clk 0:01:47.7]} 21. Rg1 {[%clk 0:01:12.7]} 21... f5 {[%clk 0:01:41.4]} 22.
Ncd5 {[%clk 0:01:11.3]} 22... Bh4 {[%clk 0:01:32.2]} 23. Nb6 {[%clk 0:01:04.2]}
23... Qc5 {[%clk 0:01:31.4]} 24. Nxa8 {[%clk 0:01:04.4]} 24... Qxe3+ {[%clk
0:01:30.1]} 25. Qe2 {[%clk 0:01:05.5]} 25... Bxf2+ {[%clk 0:01:25]} 26. Kf1
{[%clk 0:01:05.3]} 26... Bxg1 {[%clk 0:01:21]} 27. Nc7 {[%clk 0:00:59.7]} 27...
Qxe2+ {[%clk 0:01:14.2]} 28. Kxe2 {[%clk 0:01:00.2]} 28... Bd4 {[%clk
0:01:15.6]} 29. gxf5 {[%clk 0:00:24.7]} 29... Nxf5 {[%clk 0:01:00.6]} 30. Kd3
{[%clk 0:00:25.3]} 30... Rg4 {[%clk 0:00:52.4]} 31. Ne6 {[%clk 0:00:19.7]} 31...
e4+ {[%clk 0:00:49.6]} 32. Kc2 {[%clk 0:00:19.3]} 32... Rg2+ {[%clk 0:00:46.3]}
33. Kb3 {[%clk 0:00:20.1]} 33... Rxb2+ {[%clk 0:00:46]} 34. Ka3 {[%clk
0:00:20.3]} 34... Be5 {[%clk 0:00:45.2]} 35. Rf1 {[%clk 0:00:20.2]} 35... Nh6
{[%clk 0:00:33.4]} 36. Rf8+ {[%clk 0:00:13.7]} 36... Ng8 {[%clk 0:00:34.5]} 37.
h6 {[%clk 0:00:07.8]} 37... Rg2 {[%clk 0:00:27.4]} 38. Nd8 {[%clk 0:00:08.1]}
38... Rg7 {[%clk 0:00:14.1]} 39. hxg7+ {[%clk 0:00:05.6]} 39... Kxg7 {[%clk
0:00:14.5]} 40. Ne6+ {[%clk 0:00:05.1]} 40... Kh6 {[%clk 0:00:13.5]} 41. Rxg8
{[%clk 0:00:05.8]} 41... e3 {[%clk 0:00:14.7]} 42. Rg1 {[%clk 0:00:05.4]} 42...
Bc3 {[%clk 0:00:12.1]} 43. Nf4 {[%clk 0:00:04.9]} 43... b5 {[%clk 0:00:11.1]}
44. cxb5 {[%clk 0:00:05.2]} 44... axb5 {[%clk 0:00:12.2]} 45. Kb3 {[%clk
0:00:06.6]} 45... b4 {[%clk 0:00:13.2]} 46. a4 {[%clk 0:00:08]} 46... Bd2 {[%clk
0:00:13.8]} 47. a5 {[%clk 0:00:07.6]} 47... e2 {[%clk 0:00:15.3]} 48. Nxe2
{[%clk 0:00:07.9]} 48... Be3 {[%clk 0:00:15.8]} 49. Rh1+ {[%clk 0:00:08.2]} 1-0

[Event "*** Biggest EVER Titled Tuesday"]
[Site "Chess.com"]
[Date "2018.04.17"]
[Round "7"]
[White "Raffael89"]
[Black "xavielhumilde_1999"]
[Result "0-1"]
[WhiteElo "2130"]
[BlackElo "2244"]
[TimeControl "180+2"]
[EndTime "14:38:50 PDT"]
[Termination "xavielhumilde_1999 won by checkmate"]

1. d4 {[%clk 0:03:01.2]} 1... Nf6 {[%clk 0:02:58.4]} 2. Bf4 {[%clk 0:03:00.9]}
2... e6 {[%clk 0:02:56.9]} 3. e3 {[%clk 0:03:01.8]} 3... b6 {[%clk 0:02:57.2]}
4. Nd2 {[%clk 0:03:00.6]} 4... Bb7 {[%clk 0:02:57.7]} 5. Ngf3 {[%clk 0:03:02]}
5... d6 {[%clk 0:02:57.4]} 6. Bd3 {[%clk 0:03:02.9]} 6... Nbd7 {[%clk 0:02:57]}
7. O-O {[%clk 0:03:04.2]} 7... h6 {[%clk 0:02:57.5]} 8. h3 {[%clk 0:03:05.6]}
8... g5 {[%clk 0:02:57.1]} 9. Bh2 {[%clk 0:03:04.8]} 9... g4 {[%clk 0:02:56.8]}
10. hxg4 {[%clk 0:03:06.7]} 10... Nxg4 {[%clk 0:02:57.9]} 11. e4 {[%clk
0:02:52.5]} 11... Nxh2 {[%clk 0:02:56.7]} 12. Kxh2 {[%clk 0:02:53.1]} 12... Bg7
{[%clk 0:02:56.7]} 13. c3 {[%clk 0:02:52.9]} 13... Qe7 {[%clk 0:02:56.3]} 14. a4
{[%clk 0:02:52.3]} 14... a5 {[%clk 0:02:49.1]} 15. b4 {[%clk 0:02:51.3]} 15...
h5 {[%clk 0:02:43.2]} 16. bxa5 {[%clk 0:02:51.2]} 16... Rxa5 {[%clk 0:02:42.3]}
17. Nc4 {[%clk 0:02:52.4]} 17... Ra8 {[%clk 0:02:39.7]} 18. a5 {[%clk
0:02:53.2]} 18... b5 {[%clk 0:02:40.2]} 19. Ncd2 {[%clk 0:02:49.5]} 19... c6
{[%clk 0:02:40.2]} 20. Qb3 {[%clk 0:02:43.1]} 20... d5 {[%clk 0:02:39.1]} 21.
exd5 {[%clk 0:02:41.1]} 21... Qd6+ {[%clk 0:02:34.2]} 22. Kh1 {[%clk 0:02:31.9]}
22... exd5 {[%clk 0:02:33.8]} 23. Rfe1+ {[%clk 0:02:31.4]} 23... Kd8 {[%clk
0:02:29.3]} 24. c4 {[%clk 0:01:44.8]} 24... dxc4 {[%clk 0:02:26]} 25. Bxc4
{[%clk 0:01:45.5]} 25... bxc4 {[%clk 0:02:26.5]} 26. Qxb7 {[%clk 0:01:45.4]}
26... Rb8 {[%clk 0:02:27.3]} 27. Nxc4 {[%clk 0:01:25.4]} 27... Qd5 {[%clk
0:02:25.6]} 28. Qa6 {[%clk 0:01:25.7]} 28... h4 {[%clk 0:02:24.4]} 29. Ne3
{[%clk 0:00:55.8]} 29... Qh5 {[%clk 0:02:10.8]} 30. Qxc6 {[%clk 0:00:49.9]}
30... Rh6 {[%clk 0:02:07.5]} 31. Qd5 {[%clk 0:00:43.9]} 31... h3 {[%clk
0:02:06.9]} 32. Qxh5 {[%clk 0:00:42.8]} 32... hxg2+ {[%clk 0:02:05.6]} 33. Kxg2
{[%clk 0:00:44.7]} 33... Rxh5 {[%clk 0:02:06.6]} 34. a6 {[%clk 0:00:44.9]} 34...
Nb6 {[%clk 0:02:03.7]} 35. a7 {[%clk 0:00:43.6]} 35... Ra8 {[%clk 0:02:03.5]}
36. Reb1 {[%clk 0:00:41.9]} 36... Kc7 {[%clk 0:02:03.4]} 37. Ra6 {[%clk
0:00:37.3]} 37... Nc8 {[%clk 0:02:03.2]} 38. Ra4 {[%clk 0:00:24.6]} 38... Rxa7
{[%clk 0:02:02.2]} 39. Rc4+ {[%clk 0:00:21.5]} 39... Kd7 {[%clk 0:01:53.8]} 40.
Rb8 {[%clk 0:00:21.8]} 40... Rc7 {[%clk 0:01:51]} 41. Ra4 {[%clk 0:00:18.9]}
41... Nd6 {[%clk 0:01:50.7]} 42. Ng4 {[%clk 0:00:16.3]} 42... Ke6 {[%clk
0:01:42.6]} 43. Ra6 {[%clk 0:00:13.9]} 43... Ke7 {[%clk 0:01:37.4]} 44. Nge5
{[%clk 0:00:14]} 44... Bxe5 {[%clk 0:01:37.6]} 45. dxe5 {[%clk 0:00:15.3]} 45...
Nf5 {[%clk 0:01:34.5]} 46. Raa8 {[%clk 0:00:16]} 46... Ke6 {[%clk 0:01:25.1]}
47. Re8+ {[%clk 0:00:15.7]} 47... Kd5 {[%clk 0:01:25.9]} 48. Red8+ {[%clk
0:00:16.8]} 48... Ke6 {[%clk 0:01:22.6]} 49. Re8+ {[%clk 0:00:17.8]} 49... Kd5
{[%clk 0:01:20.8]} 50. Rad8+ {[%clk 0:00:18.8]} 50... Ke4 {[%clk 0:01:13.8]} 51.
e6 {[%clk 0:00:16.2]} 51... fxe6 {[%clk 0:01:14.7]} 52. Rxe6+ {[%clk 0:00:16.8]}
52... Kf4 {[%clk 0:01:15.9]} 53. Rg6 {[%clk 0:00:12]} 53... Rc3 {[%clk
0:01:12.7]} 54. Rgg8 {[%clk 0:00:09.4]} 54... Rxf3 {[%clk 0:01:11.3]} 55. Rgf8
{[%clk 0:00:07.6]} 55... Rfh3 {[%clk 0:01:05.9]} 56. Kf1 {[%clk 0:00:07.8]}
56... Rh6 {[%clk 0:01:00.3]} 57. Ra8 {[%clk 0:00:08.1]} 57... Rh1+ {[%clk
0:01:00.4]} 58. Kg2 {[%clk 0:00:08.5]} 58... R6h2# {[%clk 0:01:01.4]} 0-1

[Event "*** Biggest EVER Titled Tuesday"]
[Site "Chess.com"]
[Date "2018.04.17"]
[Round "7"]
[White "murmah2003"]
[Black "PawnEatingZombie"]
[Result "1-0"]
[WhiteElo "2535"]
[BlackElo "2021"]
[TimeControl "180+2"]
[EndTime "14:39:01 PDT"]
[Termination "murmah2003 won by resignation"]

1. d4 {[%clk 0:03:01.9]} 1... d5 {[%clk 0:03:00]} 2. c4 {[%clk 0:03:02.6]} 2...
e6 {[%clk 0:03:00.3]} 3. Nf3 {[%clk 0:03:02.4]} 3... Nf6 {[%clk 0:03:00.2]} 4.
Nc3 {[%clk 0:03:03.7]} 4... Bb4 {[%clk 0:02:59.7]} 5. cxd5 {[%clk 0:03:04.1]}
5... exd5 {[%clk 0:02:59.9]} 6. Bg5 {[%clk 0:03:05.5]} 6... h6 {[%clk
0:03:00.6]} 7. Bh4 {[%clk 0:03:06]} 7... O-O {[%clk 0:03:01]} 8. e3 {[%clk
0:03:06.3]} 8... Bf5 {[%clk 0:03:02.3]} 9. Bd3 {[%clk 0:03:06.7]} 9... Bxd3
{[%clk 0:03:01.1]} 10. Qxd3 {[%clk 0:03:08.6]} 10... Nbd7 {[%clk 0:02:57.4]} 11.
O-O {[%clk 0:03:08.7]} 11... c6 {[%clk 0:02:54.4]} 12. a3 {[%clk 0:03:03.7]}
12... Be7 {[%clk 0:02:52.7]} 13. Bg3 {[%clk 0:03:01.2]} 13... Nb6 {[%clk
0:02:31.1]} 14. Ne5 {[%clk 0:02:54]} 14... Bd6 {[%clk 0:02:30.9]} 15. f3 {[%clk
0:02:43.7]} 15... Qe7 {[%clk 0:02:23.2]} 16. Rae1 {[%clk 0:02:35.4]} 16... Rad8
{[%clk 0:02:22.7]} 17. Qc2 {[%clk 0:02:33.6]} 17... Rfe8 {[%clk 0:02:20.2]} 18.
Kh1 {[%clk 0:02:18.2]} 18... Nh5 {[%clk 0:02:18.7]} 19. f4 {[%clk 0:02:12.2]}
19... Nxg3+ {[%clk 0:01:55.2]} 20. hxg3 {[%clk 0:02:14.1]} 20... f6 {[%clk
0:01:55.5]} 21. Ng6 {[%clk 0:02:11.5]} 21... Qf7 {[%clk 0:01:55.2]} 22. Nh4
{[%clk 0:01:45.6]} 22... Nc8 {[%clk 0:01:32.8]} 23. e4 {[%clk 0:01:34.7]} 23...
dxe4 {[%clk 0:01:32]} 24. Rxe4 {[%clk 0:01:35.5]} 24... Rxe4 {[%clk 0:01:28.5]}
25. Qxe4 {[%clk 0:01:35.1]} 25... Nb6 {[%clk 0:01:26.2]} 26. Re1 {[%clk
0:01:33.3]} 26... Bf8 {[%clk 0:01:26.5]} 27. f5 {[%clk 0:01:27.3]} 27... Nd5
{[%clk 0:01:13.9]} 28. Nxd5 {[%clk 0:01:12]} 28... Qxd5 {[%clk 0:01:14]} 29. Ng6
{[%clk 0:01:10.4]} 29... Qxe4 {[%clk 0:01:10.6]} 30. Rxe4 {[%clk 0:01:12.3]}
30... Kf7 {[%clk 0:01:11.7]} 31. g4 {[%clk 0:01:03.5]} 31... Bd6 {[%clk
0:00:59.2]} 32. Kg1 {[%clk 0:01:03.8]} 32... Rd7 {[%clk 0:00:54.7]} 33. Nh8+
{[%clk 0:00:59.2]} 33... Kf8 {[%clk 0:00:53]} 34. Kf2 {[%clk 0:00:59.2]} 34...
Bc7 {[%clk 0:00:51.7]} 35. Ng6+ {[%clk 0:00:57.4]} 35... Kf7 {[%clk 0:00:52.3]}
36. Ke3 {[%clk 0:00:49.8]} 36... a5 {[%clk 0:00:40.6]} 37. Kd3 {[%clk
0:00:45.3]} 37... Bb6 {[%clk 0:00:40.6]} 38. Kc4 {[%clk 0:00:43.8]} 38... Ba7
{[%clk 0:00:34.8]} 39. a4 {[%clk 0:00:44.8]} 39... Bb8 {[%clk 0:00:28.7]} 40. b3
{[%clk 0:00:42.6]} 40... Ba7 {[%clk 0:00:29.2]} 41. Nh8+ {[%clk 0:00:40.4]}
41... Kf8 {[%clk 0:00:29.1]} 42. Ng6+ {[%clk 0:00:41.9]} 42... Kf7 {[%clk
0:00:30.2]} 43. Nf4 {[%clk 0:00:43.8]} 43... Bb6 {[%clk 0:00:23.6]} 44. Ne6
{[%clk 0:00:42.4]} 44... Ba7 {[%clk 0:00:23.9]} 45. Nc5 {[%clk 0:00:27.5]} 45...
Rc7 {[%clk 0:00:16.1]} 46. Re6 {[%clk 0:00:25.5]} 46... Bxc5 {[%clk 0:00:08.2]}
47. Kxc5 {[%clk 0:00:27.3]} 47... Rd7 {[%clk 0:00:07.7]} 48. Re4 {[%clk
0:00:26.1]} 48... Rd5+ {[%clk 0:00:03.4]} 49. Kb6 {[%clk 0:00:26.8]} 49... Rd7
{[%clk 0:00:04.9]} 50. Kxa5 {[%clk 0:00:27]} 50... Rd5+ {[%clk 0:00:06]} 51. Kb6
{[%clk 0:00:27.9]} 51... h5 {[%clk 0:00:07.9]} 52. Kxb7 {[%clk 0:00:24.2]} 52...
hxg4 {[%clk 0:00:07.5]} 53. Kxc6 {[%clk 0:00:25.1]} 53... Rxf5 {[%clk
0:00:08.3]} 54. Rxg4 {[%clk 0:00:26.4]} 1-0

[Event "*** Biggest EVER Titled Tuesday"]
[Site "Chess.com"]
[Date "2018.04.17"]
[Round "7"]
[White "ZapataCharlesS"]
[Black "Fandorine"]
[Result "1-0"]
[WhiteElo "2714"]
[BlackElo "2710"]
[TimeControl "180+2"]
[EndTime "14:39:02 PDT"]
[Termination "ZapataCharlesS won by resignation"]

1. e4 {[%clk 0:03:01.9]} 1... g6 {[%clk 0:02:58.5]} 2. Nc3 {[%clk 0:03:00.2]}
2... Bg7 {[%clk 0:02:58.9]} 3. f4 {[%clk 0:03:00.1]} 3... d6 {[%clk 0:02:57.6]}
4. Nf3 {[%clk 0:03:01]} 4... Nf6 {[%clk 0:02:59]} 5. g3 {[%clk 0:02:53.1]} 5...
O-O {[%clk 0:02:59.3]} 6. Bg2 {[%clk 0:02:54.7]} 6... c5 {[%clk 0:03:00.8]} 7.
d3 {[%clk 0:02:52.9]} 7... Nc6 {[%clk 0:03:02.1]} 8. O-O {[%clk 0:02:54.7]} 8...
Bg4 {[%clk 0:02:48.6]} 9. h3 {[%clk 0:02:51.9]} 9... Bxf3 {[%clk 0:02:49.9]} 10.
Qxf3 {[%clk 0:02:53.8]} 10... Rb8 {[%clk 0:02:49.5]} 11. Be3 {[%clk 0:02:45.6]}
11... Nd7 {[%clk 0:02:47.7]} 12. Rab1 {[%clk 0:02:41.7]} 12... b5 {[%clk
0:02:47.1]} 13. h4 {[%clk 0:02:38]} 13... Nd4 {[%clk 0:02:41.7]} 14. Qf2 {[%clk
0:02:35.5]} 14... b4 {[%clk 0:02:42.6]} 15. Na4 {[%clk 0:02:13.2]} 15... Qa5
{[%clk 0:02:33.8]} 16. b3 {[%clk 0:02:13.9]} 16... Nb6 {[%clk 0:02:35.1]} 17.
Nxb6 {[%clk 0:02:14.3]} 17... axb6 {[%clk 0:02:36.6]} 18. g4 {[%clk 0:02:15.6]}
18... Qxa2 {[%clk 0:02:32]} 19. Kh1 {[%clk 0:02:14.1]} 19... Ra8 {[%clk
0:02:26.8]} 20. Rbc1 {[%clk 0:02:05.3]} 20... Qb2 {[%clk 0:02:23]} 21. e5 {[%clk
0:02:05.3]} 21... Ra2 {[%clk 0:02:03.3]} 22. Bxd4 {[%clk 0:02:06]} 22... Qxd4
{[%clk 0:01:56.3]} 23. Qxd4 {[%clk 0:02:05.9]} 23... cxd4 {[%clk 0:01:58.2]} 24.
exd6 {[%clk 0:02:06.6]} 24... exd6 {[%clk 0:01:59.8]} 25. Rfe1 {[%clk
0:02:02.8]} 25... Rc8 {[%clk 0:01:54.4]} 26. Re7 {[%clk 0:01:49.9]} 26... Bf6
{[%clk 0:01:34.8]} 27. Rd7 {[%clk 0:01:50.4]} 27... Bxh4 {[%clk 0:01:27.9]} 28.
Bd5 {[%clk 0:01:50.2]} 28... Rf8 {[%clk 0:00:57.2]} 29. Kg2 {[%clk 0:01:49.6]}
29... Ra5 {[%clk 0:00:31.6]} 30. Be4 {[%clk 0:01:41]} 30... Rd8 {[%clk
0:00:30.8]} 31. Rb7 {[%clk 0:01:37.7]} 31... d5 {[%clk 0:00:30.5]} 32. Bf3
{[%clk 0:01:38.4]} 32... Bf6 {[%clk 0:00:21.8]} 33. Rxb6 {[%clk 0:01:31.3]}
33... Be7 {[%clk 0:00:23.1]} 34. Rb7 {[%clk 0:01:27.6]} 34... Bd6 {[%clk
0:00:24.2]} 35. Rf1 {[%clk 0:01:28.9]} 35... Bxf4 {[%clk 0:00:22]} 36. Bxd5
{[%clk 0:01:29.5]} 36... Raxd5 {[%clk 0:00:14.7]} 37. Rxf4 {[%clk 0:01:30.7]}
37... R5d7 {[%clk 0:00:15.8]} 38. Rxb4 {[%clk 0:01:27.9]} 38... Kg7 {[%clk
0:00:17]} 39. Kf2 {[%clk 0:01:23.6]} 39... Rd5 {[%clk 0:00:13.6]} 40. Rb7 {[%clk
0:01:19.4]} 40... R8d7 {[%clk 0:00:14]} 41. Rxd7 {[%clk 0:01:17.9]} 41... Rxd7
{[%clk 0:00:15.9]} 42. b4 {[%clk 0:01:19.8]} 42... Rc7 {[%clk 0:00:12.2]} 43.
Rxd4 {[%clk 0:01:20.5]} 43... Rxc2+ {[%clk 0:00:13.8]} 44. Ke3 {[%clk
0:01:19.6]} 44... Rb2 {[%clk 0:00:13.8]} 45. Rc4 {[%clk 0:01:18]} 45... h5
{[%clk 0:00:09]} 46. gxh5 {[%clk 0:01:19.9]} 46... gxh5 {[%clk 0:00:10.6]} 47.
d4 {[%clk 0:00:56.4]} 47... Kg6 {[%clk 0:00:09.1]} 48. d5 {[%clk 0:00:51.5]}
48... Rb3+ {[%clk 0:00:10.3]} 49. Kd4 {[%clk 0:00:50.2]} 49... h4 {[%clk
0:00:10.5]} 50. Kc5 {[%clk 0:00:51.4]} 50... h3 {[%clk 0:00:09.2]} 51. d6 {[%clk
0:00:52.7]} 51... Rd3 {[%clk 0:00:04.9]} 52. Kc6 {[%clk 0:00:50]} 52... Kg5
{[%clk 0:00:05.4]} 53. d7 {[%clk 0:00:46.4]} 53... h2 {[%clk 0:00:05.9]} 54. Rc1
{[%clk 0:00:46.1]} 54... Kf6 {[%clk 0:00:07.3]} 55. Kc7 {[%clk 0:00:40.7]} 55...
Ke6 {[%clk 0:00:04.5]} 56. d8=Q {[%clk 0:00:37.3]} 1-0